Cogmind - Beta 15 @@@ ROGUE MODE // 2025.07.22 @ 14:02:34 Player: carterz30cal Result: Destroyed by G-47 Trooper with Particle Gun Performance ------------- Evolutions (2) 1000 Regions Visited (7) 1400 Robots Destroyed (109) 545 Value Destroyed (2827) 2827 Prototype IDs (30) 600 Alien Tech Used (0) 0 Bonus (497) 497 TOTAL SCORE: 6869 Bonus ------- High Alert Combat Kills 71 Follower Combat Kills 161 Aligned with FarCom 300 Friendly Fire -35 Cogmind --------- Core Integrity 0/550 Matter 179/300 Energy 89/100 System Corruption 0% Temperature Warm (117) Movement Core (250) Ox4 Location -8/Materials Parts ------- > --- POWER (1) -------- (None) > --- PROPULSION (4) --- (None) > --- UTILITY (4) ------ Medium Storage Unit > --- WEAPON (2) ------- Particle Gun > --- INVENTORY (10) --- (None) Peak State ------------ > --- POWER ------------ Micro Nuclear Core > --- PROPULSION ------- Armored Huge Wheel Armored Huge Wheel > --- UTILITY ---------- Medium Storage Unit Hardened Medium Armor Plating High-powered Tractor Beam > --- WEAPON ----------- High-powered Shotgun > --- INVENTORY -------- High-capacity Matter Pod [Rating: 30] Favorites ----------- Power Ion Engine Engine Ion Engine Power Core Micro Nuclear Core Propulsion Light Treads Treads Light Treads Leg Aluminum Leg Wheel Wheel Hover Unit Airjet Flight Unit Cesium-ion Thruster Utility Huge Storage Unit Device Improved Terrain Scanner Storage Huge Storage Unit Processor Signal Interpreter Protection Hardened Light Armor Plating Weapon Improved Light Cannon Energy Gun Medium Laser Energy Cannon Particle Cannon Ballistic Gun Assault Rifle Ballistic Cannon Improved Light Cannon Launcher Rocket Launcher Build | -11 -10 -10 -9 -9 -9 -8 -8 ------- Run | Yrd Mat Min Mat Min Exi Min Mat Slots Evolved 4 | . . . 2 . . . 2 Power . | . . . . . . . . Propulsion 2 | . . . 2 . . . . Utility 2 | . . . . . . . 2 Weapon . | . . . . . . . . Parts Attached 62 | 7 8 2 17 3 10 1 14 Power 6 | 1 1 . . 2 1 . 1 Engine 5 | 1 1 . . 2 1 . . Core 1 | . . . . . . . 1 Reactor . | . . . . . . . . Propulsion 20 | 2 . . 9 1 4 1 3 Treads 13 | 2 . . 8 1 2 . . Leg 1 | . . . . . 1 . . Wheel 4 | . . . 1 . 1 . 2 Hover 1 | . . . . . . 1 . Flight 1 | . . . . . . . 1 Utility 15 | 2 3 1 4 . 1 . 4 Device 3 | 1 . 1 . . . . 1 Storage 5 | 1 2 . . . . . 2 Processor 1 | . . . 1 . . . . Hackware . | . . . . . . . . Protection 6 | . 1 . 3 . 1 . 1 Artifact . | . . . . . . . . Weapon 21 | 2 4 1 4 . 4 . 6 Energy Gun 3 | 1 . . . . . . 2 Energy Cannon 2 | . . . 1 . 1 . . Ballistic Gun 7 | 1 2 . . . . . 4 Ballistic Cannon 1 | . . . 1 . . . . Launcher 8 | . 2 1 2 . 3 . . Special Weapon . | . . . . . . . . Impact Weapon . | . . . . . . . . Slashing Weapon . | . . . . . . . . Piercing Weapon . | . . . . . . . . Special Melee Weapon . | . . . . . . . . Unidentified Prototypes . | . . . . . . . . Parts Lost 30 | . 3 . 1 . 12 2 12 Power 4 | . 1 . . . 2 . 1 Propulsion 10 | . . . . . 6 2 2 Utility 4 | . . . . . 1 . 3 Weapon 12 | . 2 . 1 . 3 . 6 Highest Loss Streak 12 | . 2 . 1 . 12 2 10 To Critical Strikes 1 | . . . . . 1 . . Average Backups 20 | 4 17 25 24 24 23 4 1 Power . | . 1 1 1 . . . . Propulsion 5 | 2 5 8 6 6 5 . . Utility 7 | . 6 9 8 8 7 3 1 Weapon 7 | . 4 7 8 9 9 1 . Tool/Special . | . . . . . . . . Unused Backups 10 | . . . 3 1 5 . 1 Power . | . . . . . . . . Propulsion 2 | . . . 2 . . . . Utility 7 | . . . 1 1 4 . 1 Weapon 1 | . . . . . 1 . . Tool/Special . | . . . . . . . . Average Slot Usage (%) 95 | . 99 100 99 100 96 40 47 Engine 10 | . 14 14 11 11 10 . . Treads 30 | . 28 28 38 33 32 4 . Wheel 6 | . . . 5 11 10 11 13 Device 3 | . 9 13 2 . . . 1 Storage 11 | . 14 14 11 11 10 . 8 Protection 7 | . 4 . 8 11 10 . 1 Energy Gun 2 | . 9 . . . . . 3 Ballistic Gun 4 | . 17 . 2 . . . 5 Ballistic Cannon 5 | . . . 8 11 9 . . Launcher 8 | . . 27 7 11 10 9 3 Peak Build Rating 30 | 9 11 9 15 17 22 6 30 Average Rating 13 | 6 9 9 13 16 16 4 19 On Entrance 8 | . 9 9 9 15 17 4 6 Naked Turns . | . . . . . . . . Heaviest Build 108 | 13 92 92 98 100 108 3 28 Greatest Support 80 | 40 40 40 80 23 16 8 56 Greatest Overweight (x) 9 | . 2 2 9 9 9 . 5 Average Overweight (x) 4 | . 1 2 5 8 7 . . Largest Inventory Capacity 25 | 8 25 25 25 25 25 5 10 Average Capacity 22 | 7 23 25 25 25 24 5 8 Most Carried 25 | 7 25 25 25 25 25 5 5 Average Carried 20 | 4 17 25 24 24 23 4 1 Final Capacity 25 | 8 25 25 25 25 5 5 10 Final Carried 25 | 6 25 25 25 25 5 4 . Class Distribution -------------------- 85% | Mutant 14% | Scavenger-Mutant Dominant Class ---------------- Mutant | -10/Materials Mutant | -10/Mines Mutant | -9/Materials Mutant | -9/Mines Mutant | -9/Exiles Mutant | -8/Mines Mutant | -8/Materials Resources | -11 -10 -10 -9 -9 -9 -8 -8 ----------- Run | Yrd Mat Min Mat Min Exi Min Mat Matter Collected 2253 | 288 227 70 1052 284 144 56 132 Remotely 416 | . . 70 214 . . . 132 Salvage Created 2933 | 137 633 . 1048 404 252 34 425 Parts 199 | 5 42 . 73 21 24 10 24 Haulers Intercepted 6 | . 2 . 4 . . . . Recyclers Shooed 1 | . 1 . . . . . . Parts Field Recycled . | . . . . . . . . Retrieved Matter . | . . . . . . . . Parts Self-Destructed . | . . . . . . . . Prevented . | . . . . . . . . Kills | -11 -10 -10 -9 -9 -9 -8 -8 ------- Run | Yrd Mat Min Mat Min Exi Min Mat Combat Hostiles Destroyed 81 | . 12 . 28 12 9 7 13 Guns 23 | . 10 . 1 . . . 12 Cannons 24 | . . . 16 7 1 . . AOE 33 | . 2 . 10 5 8 7 1 Classes Destroyed 16 | 3 7 . 2 1 1 . 2 Worker 6 | 1 2 . 2 1 . . . Builder 4 | . 1 . 3 . . . . Tunneler 3 | 1 1 . . 1 . . . Hauler 6 | . 2 . 4 . . . . Recycler 2 | 1 . . . 1 . . . Mechanic 1 | . 1 . . . . . . Operator 1 | . 1 . . . . . . Watcher 5 | . 3 . 2 . . . . Swarmer 22 | . 3 . 7 1 . 7 4 Grunt 43 | . 9 . 16 9 6 . 3 Brawler 1 | . . . . 1 . . . Duelist 3 | . . . 1 1 1 . . Sentry 7 | . . . 4 . . . 3 Specialist 2 | . . . . . . . 2 Hunter 1 | . . . . . . . 1 Programmer 2 | . . . . . 2 . . Best Kill Streak 10 | 1 4 . 10 3 6 4 4 Combat Bots Only 8 | . 3 . 8 3 6 4 4 Max Kills in Single Turn 4 | 1 2 . 4 2 2 4 1 Gunslinging 1 | . 1 . . . . . . Exploded 4 | . 2 . 4 2 2 4 1 Melee . | . . . . . . . . Uniques/NPCs Destroyed . | . . . . . . . . Combat | -11 -10 -10 -9 -9 -9 -8 -8 -------- Run | Yrd Mat Min Mat Min Exi Min Mat Hostile Shots Fired 553 | . 83 . 71 29 143 4 223 Missed 159 | . 22 . 18 7 45 1 66 Hits 394 | . 61 . 53 22 98 3 157 Melee 2 | . . . . 2 . . . Projectile 392 | . 61 . 53 20 98 3 157 Critical Strikes 18 | . 1 . 2 1 3 . 11 Damage Taken 5256 | . 587 . 683 353 1575 67 1991 Core 956 | . 89 . 65 47 182 13 560 Absorbed by Shields . | . . . . . . . . Regen/Repaired (Parts) 76 | . . . 76 . . . . Core Remaining (%) 62 | 100 . 64 . . . 23 . Volleys Fired 268 | 7 60 . 73 58 9 3 58 Largest 2 | 2 2 . 2 2 2 1 2 Hottest 101 | 70 70 . 101 66 66 30 85 Shots Fired 396 | 14 115 . 110 64 12 3 78 Gun 207 | 14 106 . 11 . . . 76 Cannon 137 | . . . 85 47 5 . . Launcher 52 | . 9 . 14 17 7 3 2 Special . | . . . . . . . . Kinetic 262 | 7 75 . 72 47 4 . 57 Thermal 72 | 7 31 . 24 . . . 10 Explosive 52 | . 9 . 14 17 7 3 2 Electromagnetic 10 | . . . . . 1 . 9 Robot Hit Streak 12 | 3 11 . 11 12 1 . 9 Robot Miss Streak 6 | 3 6 . 6 2 2 1 2 Penetration Max . | . . . . . . . . Secondary Targets 2 | . 1 . . . . . 1 Max Gunslinging Chain 1 | . 1 . . . . . 1 Shots Hit Robots 216 | 7 62 . 51 30 5 . 61 Core Hits 159 | 4 36 . 49 20 15 8 27 Critical Kills 1 | . . . 1 . . . . Critical Parts Destroyed . | . . . . . . . . Critical Strikes 5 | . . . 4 1 . . . Meltdown 1 | . . . 1 . . . . Blast 4 | . . . 3 1 . . . Melee Attacks . | . . . . . . . . Impact . | . . . . . . . . Slashing . | . . . . . . . . Piercing . | . . . . . . . . Sneak Attacks . | . . . . . . . . Combat Hostiles . | . . . . . . . . Follow-up Attacks . | . . . . . . . . Damage Inflicted 6744 | 89 1100 . 2114 1265 830 307 1039 Guns 1895 | 89 821 . 63 . . . 922 Cannons 1673 | . . . 1071 570 32 . . Explosions 3163 | . 279 . 980 687 798 302 117 Melee . | . . . . . . . . Ramming 13 | . . . . 8 . 5 . Kinetic 2797 | 52 583 . 888 570 25 . 679 Thermal 712 | 37 238 . 246 . . . 191 Explosive 2999 | . 279 . 980 687 690 302 61 Electromagnetic 223 | . . . . . 115 . 108 Impact . | . . . . . . . . Slashing . | . . . . . . . . Piercing . | . . . . . . . . Highest Corruption 11 | . . . . . 11 11 . Average Corruption 9 | . . . . . 6 11 . Corruption Purged . | . . . . . . . . Corruption Blocked . | . . . . . . . . Effects 10 | . . . . . 5 5 . Message Errors 1 | . . . . . . 1 . Matter Fused 5 | . . . . . 3 2 . Heat Flow Errors 1 | . . . . . . 1 . Energy Discharges 2 | . . . . . 1 1 . Parts Rejected 1 | . . . . . 1 . . Overload Shots . | . . . . . . . . Overflow Damage 125 | . . . 97 7 18 3 . Projectiles 20 | . . . 20 . . . . Explosions 105 | . . . 77 7 18 3 . Melee . | . . . . . . . . Knockbacks 11 | . . . 7 3 . 1 . Impact 1 | . . . . . . 1 . Kinetic 9 | . . . 6 3 . . . Secondary 1 | . . . 1 . . . . Self-Inflicted Damage 310 | . . . 79 68 100 46 17 Shots 9 | . . . 3 2 1 2 1 Rammed 2 | . . . . 1 . 1 . Targets Rammed 2 | . . . . 1 . 1 . Kicked . | . . . . . . . . Crushed . | . . . . . . . . Highest Temperature 224 | 18 126 . 224 57 21 158 108 Average Temperature 37 | 8 29 . 52 33 9 88 28 Received Heat Transfer 1380 | . 201 . 264 117 60 . 738 Siege Activations . | . . . . . . . . Martial Activations . | . . . . . . . . Shielding Activations . | . . . . . . . . Robots Disrupted . | . . . . . . . . Combat Hostiles . | . . . . . . . . Robots Corrupted . | . . . . . . . . Combat Hostiles . | . . . . . . . . Parts Fried . | . . . . . . . . Impact Corruptions . | . . . . . . . . Robots Melted 1 | . . . 1 . . . . Combat Hostiles 1 | . . . 1 . . . . Parts Melted 2 | . . . . . . . 2 Heat Transferred 1641 | 111 703 . 444 . . . 383 Parts Sabotaged . | . . . . . . . . Parts Stolen . | . . . . . . . . Parts Stripped . | . . . . . . . . Power Chain Reactions 1 | . . . . . . . 1 Latent Energy Used 200 | . . . . . 200 . . LE Corruption 3 | . . . . . 3 . . Alert | -11 -10 -10 -9 -9 -9 -8 -8 ------- Run | Yrd Mat Min Mat Min Exi Min Mat Maximum Alert Level 2 | . . . 2 1 . . 1 Low Security (%) 73 | 100 100 100 28 74 . 100 99 Level 1 9 | . . . 9 25 . . . Level 2 17 | . . . 61 . . . . Level 3 . | . . . . . . . . Level 4 . | . . . . . . . . Level 5 . | . . . . . . . . High Security . | . . . . . . . . Max Security . | . . . . . . . . Peak Influence 557 | 5 179 53 557 266 . 169 200 Initial 193 | . 3 51 11 193 . . 53 Average 159 | 1 53 10 328 167 . 104 82 Influence Increases 2882 | 15 462 53 972 516 239 229 396 Destroy 0b10 Robot/C 1720 | . 240 40 560 260 220 140 260 Destroy 0b10 Robot/NC 140 | 15 55 . 55 15 . . . Destroy Leader 322 | . 50 10 132 40 . 20 70 Allied During Kill 12 | . . 3 . 5 4 . . Successful Hack 74 | . 49 . 20 . . . 5 Disable Machine 120 | . 15 . 45 45 . . 15 Destroy Structure 314 | . 38 . 130 106 . 24 16 Lose Combat Pursuer 180 | . 15 . 30 45 15 45 30 Influence Decreases 2711 | 10 336 155 503 870 354 119 364 Entered New Map 664 | . 2 80 18 305 144 29 86 Time Decay 1727 | 10 304 75 475 565 70 70 158 Lost Part 300 | . 30 . 10 . 120 20 120 Lost Ally 20 | . . . . . 20 . . Squads Dispatched 10 | . 2 . 3 1 . . 4 Investigation 3 | . 2 . 1 . . . . Extermination . | . . . . . . . . Reinforcement 6 | . . . 2 . . . 4 Assault 1 | . . . . 1 . . . Garrison . | . . . . . . . . Intercept . | . . . . . . . . Searches Triggered . | . . . . . . . . Construction Impeded 1 | . . . 1 . . . . Haulers Reinforced . | . . . . . . . . Active Scanning Responses . | . . . . . . . . Cargo Convoy Interrupts . | . . . . . . . . Stealth | -11 -10 -10 -9 -9 -9 -8 -8 --------- Run | Yrd Mat Min Mat Min Exi Min Mat Distress Signals 7 | . 2 . 5 . . . . Communications Jammed . | . . . . . . . . Distress Signals . | . . . . . . . . Times Spotted 129 | . 18 2 40 16 23 9 21 Peak Tracking Total 10 | . 6 2 9 4 9 6 10 Tactical Retreats 8 | . 1 . 2 1 1 1 2 Traps | -11 -10 -10 -9 -9 -9 -8 -8 ------- Run | Yrd Mat Min Mat Min Exi Min Mat Traps Triggered 2 | . . . 2 . . . . Indirectly . | . . . . . . . . Trap Hack Attempts . | . . . . . . . . Triggered . | . . . . . . . . Disarmed . | . . . . . . . . Reprogrammed . | . . . . . . . . Reused . | . . . . . . . . Traps Extracted . | . . . . . . . . Installed . | . . . . . . . . Triggered . | . . . . . . . . Machines | -11 -10 -10 -9 -9 -9 -8 -8 ---------- Run | Yrd Mat Min Mat Min Exi Min Mat Machines Disabled 14 | . 3 . 3 3 4 . 1 Max in Single Turn 2 | . 2 . 2 1 2 . 1 Machines Repaired . | . . . . . . . . Machines Dismantled . | . . . . . . . . Machines Sabotaged . | . . . . . . . . Overloaded Fab Kills . | . . . . . . . . Hacking | -11 -10 -10 -9 -9 -9 -8 -8 --------- Run | Yrd Mat Min Mat Min Exi Min Mat Machines Accessed 14 | . 6 . 5 . 1 . 2 Terminals 11 | . 5 . 4 . . . 2 Fabricators . | . . . . . . . . Repair Stations 1 | . . . 1 . . . . Recycling Units 1 | . 1 . . . . . . Scanalyzers . | . . . . . . . . Garrison Access . | . . . . . . . . Total Hacks 37 | . 17 . 11 . 1 . 8 Successful 24 | . 11 . 9 . 1 . 3 Failed 13 | . 6 . 2 . . . 5 Catastrophic . | . . . . . . . . Database Lockouts . | . . . . . . . . Manual 7 | . 3 . 2 . 2 . . Terminals 29 | . 12 . 9 . . . 8 Fabricators . | . . . . . . . . Repair Stations 2 | . . . 2 . . . . Recycling Units 5 | . 5 . . . . . . Scanalyzers . | . . . . . . . . Garrison Access . | . . . . . . . . Terminal Hacks 18 | . 7 . 7 . 1 . 3 Robot Analysis 1 | . . . 1 . . . . Prototype ID Bank 5 | . 2 . 3 . . . . Branch Access Points 1 | . 1 . . . . . . Locate Traps 2 | . . . 1 . . . 1 Transport Status 1 | . 1 . . . . . . Investigation Status 1 | . 1 . . . . . . Reinforcement Status 1 | . 1 . . . . . . Hauler Manifests 2 | . . . 1 . . . 1 Registered Components 1 | . 1 . . . . . . Zone Layout 2 | . . . 1 . . . 1 Proto ID Catalog 1 | . . . . . 1 . . Fabricator Hacks . | . . . . . . . . Repair Station Hacks 2 | . . . 2 . . . . Scan Component 1 | . . . 1 . . . . Repair 1 | . . . 1 . . . . Recycling Unit Hacks 2 | . 2 . . . . . . Report Inventory 1 | . 1 . . . . . . Retrieve Components 1 | . 1 . . . . . . Scanalyzer . | . . . . . . . . Garrison Access Hacks . | . . . . . . . . Unauthorized Hacks 2 | . 2 . . . . . . Terminals . | . . . . . . . . Fabricators . | . . . . . . . . Repair Stations . | . . . . . . . . Recycling Units 2 | . 2 . . . . . . Reject 1 | . 1 . . . . . . Mask 1 | . 1 . . . . . . Scanalyzers . | . . . . . . . . Garrison Access . | . . . . . . . . Data Cores Recovered 1 | . 1 . . . . . . Used . | . . . . . . . . Hacking Detections 8 | . 3 . 3 . . . 2 Full Trace Events 2 | . 2 . . . . . . Feedback Events . | . . . . . . . . Feedback Blocked . | . . . . . . . . Robot Schematics Acquired . | . . . . . . . . Robots Built . | . . . . . . . . Authchips . | . . . . . . . . Time . | . . . . . . . . Total Robot Build Rating . | . . . . . . . . Part Schematics Acquired . | . . . . . . . . Parts Built . | . . . . . . . . Authchips . | . . . . . . . . Time . | . . . . . . . . Total Part Build Rating . | . . . . . . . . Parts Repaired 1 | . . . 1 . . . . Time 32 | . . . 32 . . . . Parts Recycled . | . . . . . . . . Recycled Matter . | . . . . . . . . Retrieved Matter . | . . . . . . . . Retrieved Components 9 | . 9 . . . . . . Parts Scanalyzed . | . . . . . . . . Part Schematics Acquired . | . . . . . . . . Parts Damaged . | . . . . . . . . Bothacking | -11 -10 -10 -9 -9 -9 -8 -8 ------------ Run | Yrd Mat Min Mat Min Exi Min Mat Used RIF Installer . | . . . . . . . . Robots Hacked . | . . . . . . . . Non-combat . | . . . . . . . . Combat . | . . . . . . . . Robot Hacks Applied . | . . . . . . . . Relay Couplers Released . | . . . . . . . . Fabnet Peak Effective % . | . . . . . . . . Robots Rewired . | . . . . . . . . Allies Hacked . | . . . . . . . . Hacks Repelled . | . . . . . . . . Allies | -11 -10 -10 -9 -9 -9 -8 -8 -------- Run | Yrd Mat Min Mat Min Exi Min Mat Total Allies 2 | . . 1 . 1 . . . Largest Group 1 | . . 1 1 1 1 . . Highest-Rated Group 31 | . . 31 31 31 31 . . Highest-Rated Ally 31 | . . 31 31 31 31 . . Total Orders . | . . . . . . . . Ally Attacks 25 | . . 10 . 7 8 . . Total Damage 385 | . . 126 . 125 134 . . Kills 5 | . . 2 . 1 2 . . Allies Corrupted 1 | . . . . . 1 . . Allies Melted . | . . . . . . . . Intel | -11 -10 -10 -9 -9 -9 -8 -8 ------- Run | Yrd Mat Min Mat Min Exi Min Mat Active Infowar (turns) 1038 | 63 975 . . . . . . Terrain 1038 | 63 975 . . . . . . Robot Analysis Total 1 | . . . 1 . . . . Derelict Logs Recovered 1 | . . . . 1 . . . Drone Launches . | . . . . . . . . Drone Recoveries . | . . . . . . . . Exploration | -11 -10 -10 -9 -9 -9 -8 -8 ------------- Run | Yrd Mat Min Mat Min Exi Min Mat Turns Passed 6969 | 174 1485 571 1734 1687 802 162 354 Spaces Moved 2839 | 88 372 178 648 710 402 261 180 Core 234 | 3 . . . . 55 174 2 Treads 908 | 85 372 178 263 10 . . . Legs . | . . . . . . . . Wheels 1548 | . . . 385 700 347 . 116 Hover 109 | . . . . . . 87 22 Flight 40 | . . . . . . . 40 Fastest Speed 50 | 50 160 320 215 215 50 50 50 Average Speed 206 | 156 287 320 225 218 189 58 90 Slowest Speed 480 | 160 320 320 240 480 215 75 300 Overloaded Moves . | . . . . . . . . Propulsion Burnouts . | . . . . . . . . Robots Hopped . | . . . . . . . . Potential Cave-ins . | . . . . . . . . Cave-ins Triggered . | . . . . . . . . Exploration Rate (%) 49 | 5 50 35 45 94 70 75 22 Regions Visited 7 Branch Regions 4 Pre-discovered Areas . | . . . . . . . . Known Exits Taken 2 | . 1 . 1 . . . . Unknown Exits Taken 5 | 1 . 1 . 1 1 1 . Scrap Searched 4 | . . 1 . 2 . 1 . Spaces Dug 25 | . 6 . . 19 . . . Terrain Destroyed 482 | . 39 . 171 187 42 30 13 Melee . | . . . . . . . . Projectile 6 | . . . 3 3 . . . AOE 476 | . 39 . 168 184 42 30 13 Terrain Rammed . | . . . . . . . . Walls Destroyed . | . . . . . . . . Machines Disabled . | . . . . . . . . Actions | -11 -10 -10 -9 -9 -9 -8 -8 --------- Run | Yrd Mat Min Mat Min Exi Min Mat Total 3548 | 108 673 180 813 782 431 267 294 Wait 284 | . 204 . 43 3 2 . 32 Move 2832 | 87 371 177 647 709 401 260 180 Hop . | . . . . . . . . Pick Up 47 | 7 23 . 8 3 1 1 4 Fast Attach 14 | 6 . . 2 . . . 6 Attach 29 | 1 3 . 3 . 12 2 8 Detach . | . . . . . . . . Swap 39 | . 9 3 23 3 . . 1 Drop 33 | . 3 . 14 5 6 . 5 Fire 268 | 7 60 . 73 58 9 3 58 Melee . | . . . . . . . . Ram 2 | . . . . 1 . 1 . Kick . | . . . . . . . . Crush . | . . . . . . . . Escape Stasis . | . . . . . . . . Rewire . | . . . . . . . . Trap . | . . . . . . . . Miscellaneous . | . . . . . . . . Route ------- -11/Scrapyard -10/Materials -10/Mines -9/Materials (discovered 2 exits: *Mat / *Min) -9/Mines (discovered 2 exits: *Mat / *Exi) -9/Exiles -8/Mines -8/Materials History --------- Turn | Location | Event 18 | -11/Scrapyard | Discovered new exit (range 16) 175 | -11/Scrapyard | Entered Materials 201 | -10/Materials | Identified exit to Mines 303 | -10/Materials | Build established: Mutant 1660 | -10/Materials | Entered Mines 1761 | -10/Mines | Discovered new exit (range 15) 2078 | -10/Mines | Received a Mining Laser from a helpful Derelict 2231 | -10/Mines | Entered Materials 2231 | -9/Materials | Accompanied by 1 ally 2231 | -9/Materials | Evolved 2 slots: Propulsion x2 2698 | -9/Materials | Destroyed 8 combat bots 2782 | -9/Materials | Build established: Scavenger-Mutant 2943 | -9/Materials | Destroyed 7 combat bots 3073 | -9/Materials | Discovered new exit (range 7) 3155 | -9/Materials | Identified exit to Mines 3386 | -9/Materials | Build established: Mutant 3563 | -9/Materials | Repaired Imp. Light Cannon 3668 | -9/Materials | Discovered new exit (range 6) 3965 | -9/Materials | Entered Mines 4023 | -9/Mines | Learned location of 1 exit from Proximity Caves 4273 | -9/Mines | Build established: Scavenger-Mutant 4337 | -9/Mines | Found DCF Scrap (15 items) 4523 | -9/Mines | Found a hidden stash of uninstalled traps 4632 | -9/Mines | Build established: Mutant 4680 | -9/Mines | Discovered new exit (range 10) 4911 | -9/Mines | Met a Derelict testing a Signal Generator 5139 | -9/Mines | Received a Rocket Launcher from a helpful Derelict 5639 | -9/Mines | Deemed a non-threat by the Exiles lab entrance 5641 | -9/Mines | Discovered new exit (range 5) 5652 | -9/Mines | Entered Exiles 5652 | -9/Exiles | Accompanied by 1 ally 5728 | -9/Exiles | Met 8R-AWN 5773 | -9/Exiles | Met EX-HEX 5859 | -9/Exiles | Met EX-DEC 6003 | -9/Exiles | Met EX-BIN 6039 | -9/Exiles | Aligned with FarCom system 6042 | -9/Exiles | Given EX-Vault access code 6110 | -9/Exiles | Opened EX-Vault 6135 | -9/Exiles | Found Latent Energy Streamer 6196 | -9/Exiles | Warned to stay clear of 0b10 Research branches 6199 | -9/Exiles | Exiles lab attacked by MAIN.C 6364 | -9/Exiles | Core integrity fell below 50% 6404 | -9/Exiles | Lost 7 allies 6409 | -9/Exiles | System corruption reached 10% 6448 | -9/Exiles | Discovered new exit (range 14) 6452 | -9/Exiles | Lost 12 parts (2p6n1u3w) 6454 | -9/Exiles | Entered Mines 6609 | -8/Mines | Discovered new exit (range 9) 6616 | -8/Mines | Entered Materials 6616 | -8/Materials | Evolved 2 slots: Utility x2 6922 | -8/Materials | Core integrity fell below 50% 6941 | -8/Materials | Core integrity fell below 20% 6970 | -8/Materials | Destroyed by G-47 Trooper with Particle Gun Last Messages --------------- 06931_ Critical hit (Burn: +37). 06933_ K-01 Serf collects debris. 06935_ Acquired Assault Rifle. 06937_ K-01 Serf collects debris. 06943_ G-47 Trooper destroyed. 06944_ K-01 Serf collects debris. 06944_ Critical hit (Burn: +37). 06948_ Acquired Particle Gun. 06948_ K-01 Serf collects debris. 06952_ Assault Rifle destroyed. 06953_ K-01 Serf collects debris. 06957_ Hcp. Matter Pod destroyed. 06958_ Critical hit (Burn: +37). 06960_ K-01 Serf collects debris. 06965_ Y-45 Defender heat damages Beam Rifle. 06966_ Y-45 Defender heat damages core (-4). 06966_ Heat Sink melted. 06966_ Lgt. Treads melted. 06966_ Y-45 Defender destroyed. 06969_ K-01 Serf collects debris. Map ----- +----------------------------------------------------+ | | | | | | | ???????????????????????????????????????????? | | ???????????????????????????????????????????? | | ???????????????????????????????????????????? | | ???????????????????????????????????????????? | | ???????????????????????????????????????????? | | ???????????????????????????????????????????? | | ???????????????????????????????????????????? | | ???????????????????????????????????????????? | | ??????????????????????????? ??????????????? | | ?????????????????????????? #?????????????? | | ?????????????????????????? #?????????????? | | ??????????????????????????# #?????????????? | | ??????????????????????????# #????????###### | | ??????????????????????????# #????????# | | ??????????????????????????# #????????# | | ??????????????????????????# #????????# | | ??????????????????????????# #????????# | | ????????????#?????????????# #????????? | | ????????????# ????????????# #?????????# # | | ????????????# ???????????# #?????????# # | | ???????????## #?????????## ##????????# # | | ?????????? # ########## !%########## # | | ??????? + "" @ % !%=[ | | ???????????# T k=%=%! [ g | | ???????????# ##+####### | | ???????????## ???#%[ ############### ## | | ?????????????????# """ #?????????????# #? | | ?????????????????# """ #?????????????# #? | | ?????????????????# """ #?????????????# #? | | ?????????????????# """ #?????????????# #? | | ?????????????????# """ #?????????????# #? | | ?????????????????# #?????????????# #? | | ?????????????????# " #?????????????# #? | | ?????????????????# " ! #?????????????" #? | | ?????????????????# #????????????? #? | | ?????????????????# #????????????? #? | | ?????????????????? #????????????""" #? | | ?????????????????? #????????????""" #? | | ??????????????????#+#####?????????????"" #? | | ???????????????????????????????????????? ## | | ???????????????????????????????????????? | | ???????????????????????????????????????? | | ????????????????????????????????????????? | | ??????????????????????????????????????????## | | ???????????????????????????????????????????? | | ???????????????????????????????????????????? | | ???????????????????????????????????????????? | +----------------------------------------------------+ Best States ------------- Heat Dissipation 31 Energy Generation 15 Energy Capacity 265 Matter Stores 309 Matter Capacity 500 Sight Range 16 Terrain Scan Range 16 Terrain Scan Density 10 Armor Coverage 225 Evasion (%) 60 Recoil Reduction 4 Item Schematics ----------------- None Robot Schematics ------------------ None Fabricated ------------ Nothing Repaired ---------- Imp. Light Cannon | 43% | -9/Materials Alien Tech Used ----------------- None Achievements -------------- None Challenges ------------ None Game ------ Seed InsulatedFissionSpiker Manual? 0 Play Time 00:49:53 Cumulative 21.4 hours Start 2025.07.22 @ 11:20:28 End 2025.07.22 @ 14:02:34 Sessions 1 Manual Loads 0 Difficulty Rogue Special Mode None Game No. 39 Rogue 39 Adventurer 0 Explorer 0 Win Type - Total 0 Types 0/0/0/0/0/0/0/0/0/0 Lore% 11 Gallery% 18 Achievement% 22 Wizard Run 0 Options --------- Layout 1 ASCII 0 Keyboard 0 Movement Arrows Keybinds 0 Fullscreen 1 Font 24/Smallcaps Map View 50x35 Zoom Use 0% Tactical HUD 1 Map Filters NONE Filters NONE Steam 1 RUN: 69280954-90c4-40af-abc5-94553fbf6f51